[Event "ESP-chT 1st Division 2020"]
[Site "Padron"]
[Date "2020.10.09"]
[Round "7.22"]
[White "Suarez Garcia, Carlos"]
[Black "Martinez Martin, David"]
[Result "1-0"]
[ECO "A04"]
[WhiteElo "2439"]
[BlackElo "2389"]
[Annotator "ChessBase"]
[PlyCount "235"]
[EventDate "2020.10.01"]
[EventType "team-tourn"]
[EventCountry "ESP"]
[SourceTitle "playchess.com"]
[Source "ChessBase"]
[SourceQuality "1"]
[TimeControl "5400+30"]

1. Nf3 {[%emt 0:00:00]} c5 {[%emt 0:00:00]} 2. b3 {[%emt 0:00:03]} d6 {[%emt 0:00:00]} 3. d4 {[%emt 0:00:53]} cxd4 {[%emt 0:00:00]} 4. Nxd4 {[%emt 0:00:05]} Nc6 {[%emt 0:07:53]} 5. Bb2 {[%emt 0:01:53]} Nf6 {[%emt 0:03:07]} 6. g3 {[%emt 0:08:52]} Qa5+ {[%emt 0:00:19]} 7. Nd2 {[%emt 0:03:30]} Nxd4 {[%emt 0:31:00]} 8. Bxd4 {[%emt 0:00:40]} e5 {[%emt 0:00:06]} 9. Bb2 {[%emt 0:01:28]} Qd5 {[%emt 0:00:28]} 10. Nf3 {[%emt 0:00:59]} Qxd1+ {[%emt 0:00:06]} 11. Rxd1 {[%emt 0:00:12]} Bf5 {[%emt 0:00:06]} 12. c4 {[%emt 0:12:39]} a5 {[%emt 0:00:53]} 13. Bg2 {[%emt 0:04:19]} a4 {[%emt 0:00:12]} 14. Ra1 {[%emt 0:13:06]} axb3 {[%emt 0:09:18]} 15. axb3 {[%emt 0:00:08]} Rxa1+ {[%emt 0:00:05]} 16. Bxa1 {[%emt 0:00:10]} Be4 {[%emt 0:00:07]} 17. O-O {[%emt 0:01:02]} Be7 {[%emt 0:00:22]} 18. Bc3 {[%emt 0:03:31]} Bc6 {[%emt 0:04:36]} 19. Bb4 {[%emt 0:01:45]} Ne4 {[%emt 0:01:29]} 20. Ra1 {[%emt 0:00:55]} Kd7 {[%emt 0:02:39]} 21. Nd2 {[%emt 0:10:06]} Nxd2 {[%emt 0:03:13]} 22. Bxd2 {[%emt 0:00:29]} Bxg2 {[%emt 0:01:30]} 23. Kxg2 {[%emt 0:00:05]} b5 {[%emt 0:03:51]} 24. e4 {[%emt 0:04:57]} bxc4 {[%emt 0:01:54]} 25. bxc4 {[%emt 0:00:02]} Rb8 {[%emt 0:01:34]} 26. Ra7+ {[%emt 0:03:43]} Ke6 {[%emt 0:00:28]} 27. Ra6 {[%emt 0:00:05]} Rc8 {[%emt 0:03:06]} 28. Ra4 {[%emt 0:00:03]} g6 {[%emt 0:00:45]} 29. Kf3 {[%emt 0:09:27]} f5 {[%emt 0:00:33]} 30. Be3 {[%emt 0:00:05]} Rc6 {[%emt 0:02:58]} 31. h3 {[%emt 0:00:56]} h5 {[%emt 0:03:51]} 32. Rb4 {[%emt 0:01:49]} h4 {[%emt 0:05:21]} 33. Ra4 {[%emt 0:00:43]} Rc8 {[%emt 0:06:00]} 34. Rb4 {[%emt 0:04:25]} Rh8 {[%emt 0:02:52]} 35. exf5+ {[%emt 0:02:51]} gxf5 {[%emt 0:00:13]} 36. g4 {[%emt 0:00:02]} f4 {[%emt 0:03:49]} 37. Ba7 {[%emt 0:00:04]} Ra8 {[%emt 0:00:07]} 38. Rb7 {[%emt 0:02:30]} Rc8 {[%emt 0:00:24]} 39. Rb4 {[%emt 0:00:09]} Rc6 {[%emt 0:02:45]} 40. Bb6 {[%emt 0:00:18]} d5 41. cxd5+ {[%emt 0:00:10]} Kxd5 {[%emt 0:00:52]} 42. Rb5+ {[%emt 0:00:15]} Ke6 {[%emt 0:00:37]} 43. Ba7 {[%emt 0:04:15]} Rc3+ {[%emt 0:01:21]} 44. Ke4 {[%emt 0:00:36]} Rc4+ {[%emt 0:00:02]} 45. Kd3 {[%emt 0:01:08]} Ra4 {[%emt 0:00:17]} 46. Bb8 {[%emt 0:01:23]} e4+ {[%emt 0:00:44]} 47. Ke2 {[%emt 0:02:54]} Ra2+ {[%emt 0:00:46]} 48. Ke1 {[%emt 0:00:01]} Ra1+ {[%emt 0:00:24]} 49. Ke2 {[%emt 0:00:02]} Ra2+ {[%emt 0:00:36]} 50. Ke1 {[%emt 0:00:00]} Ra1+ {[%emt 0:00:40]} 51. Ke2 {[%emt 0:00:02]} f3+ {[%emt 0:00:36]} 52. Ke3 {[%emt 0:00:05]} Re1+ {[%emt 0:00:06]} 53. Kf4 {[%emt 0:00:25]} Bf6 {[%emt 0:00:14]} 54. Rb6+ {[%emt 0:01:32]} Kf7 {[%emt 0:00:24]} 55. Rb4 {[%emt 0:01:34]} Rh1 {[%emt 0:01:06]} 56. g5 {[%emt 0:01:35]} e3 {[%emt 0:00:32]} 57. Kxe3 {[%emt 0:00:24]} Bxg5+ {[%emt 0:00:08]} 58. Kxf3 {[%emt 0:00:33]} Be7 {[%emt 0:01:02]} 59. Rf4+ {[%emt 0:00:50]} Kg6 {[%emt 0:00:24]} 60. Kg2 {[%emt 0:00:22]} Rb1 {[%emt 0:00:18]} 61. Ba7 {[%emt 0:00:25]} Bg5 {[%emt 0:00:40]} 62. Ra4 {[%emt 0:00:23]} Rb3 {[%emt 0:00:19]} 63. Ra6+ {[%emt 0:00:27]} Kf5 {[%emt 0:00:17]} 64. Ra5+ {[%emt 0:00:07]} Kg6 {[%emt 0:00:06]} 65. Bd4 {[%emt 0:00:17]} Rd3 {[%emt 0:00:25]} 66. Be5 {[%emt 0:00:06]} Be7 {[%emt 0:01:33]} 67. Bf4 {[%emt 0:00:11]} Bf6 {[%emt 0:00:27]} 68. Be3 {[%emt 0:00:05]} Rd1 {[%emt 0:00:22]} 69. Rb5 {[%emt 0:00:11]} Re1 {[%emt 0:00:27]} 70. Rb4 {[%emt 0:00:19]} Kf5 {[%emt 0:00:34]} 71. Kf3 {[%emt 0:01:08]} Rh1 {[%emt 0:00:30]} 72. Rb5+ {[%emt 0:00:07]} Kg6 {[%emt 0:00:20]} 73. Ra5 {[%emt 0:00:04]} Rg1 {[%emt 0:00:48]} 74. Rd5 {[%emt 0:00:36]} Rh1 {[%emt 0:00:22]} 75. Kg2 {[%emt 0:00:39]} Rb1 {[%emt 0:00:25]} 76. Rd6 {[%emt 0:00:17]} Kf5 {[%emt 0:00:16]} 77. Bd4 {[%emt 0:00:46]} Bxd4 {[%emt 0:00:45]} 78. Rxd4 {[%emt 0:00:05]} Kg5 {[%emt 0:00:02]} 79. Rd5+ {[%emt 0:00:08]} Kg6 {[%emt 0:00:11]} 80. Kf3 {[%emt 0:00:53]} Rb3+ {[%emt 0:00:15]} 81. Kg4 {[%emt 0:00:19]} Rb2 {[%emt 0:01:05]} 82. Rg5+ {[%emt 0:00:35]} Kf6 {[%emt 0:00:11]} 83. Rf5+ {[%emt 0:00:04]} Kg6 {[%emt 0:00:14]} 84. Rf4 {[%emt 0:00:04]} Rb1 {[%emt 0:00:56]} 85. Kxh4 {[%emt 0:00:06]} Rf1 {[%emt 0:01:07]} 86. Kg3 {[%emt 0:00:14]} Rg1+ {[%emt 0:00:36]} 87. Kf3 {[%emt 0:00:10]} Ra1 {[%emt 0:00:24]} 88. Rb4 {[%emt 0:00:25]} Rh1 {[%emt 0:00:16]} 89. Kg3 {[%emt 0:00:19]} Rg1+ {[%emt 0:00:22]} 90. Kf4 {[%emt 0:00:12]} Rf1 {[%emt 0:00:24]} 91. Rb6+ {[%emt 0:00:27]} Kg7 {[%emt 0:00:34]} 92. Kg3 {[%emt 0:00:18]} Rg1+ {[%emt 0:00:19]} 93. Kh2 {[%emt 0:00:04]} Ra1 {[%emt 0:00:38]} 94. Kg2 {[%emt 0:00:08]} Ra4 {[%emt 0:00:56]} 95. Kg3 {[%emt 0:00:13]} Ra1 {[%emt 0:00:08]} 96. f4 {[%emt 0:00:17]} Rg1+ {[%emt 0:00:10]} 97. Kf3 {[%emt 0:00:50]} Rh1 {[%emt 0:00:41]} 98. Kg4 {[%emt 0:00:10]} Rg1+ {[%emt 0:01:08]} 99. Kf5 {[%emt 0:00:08]} Rh1 {[%emt 0:00:25]} 100. Rb7+ {[%emt 0:00:20]} Kh6 {[%emt 0:00:34]} 101. Rb3 {[%emt 0:00:21]} Kg7 {[%emt 0:00:13]} 102. Rd3 {[%emt 0:00:11]} Rh2 {[%emt 0:00:49]} 103. Rg3+ {[%emt 0:01:02]} Kf7 {[%emt 0:00:06]} 104. Re3 {[%emt 0:05:10]} Rh1 {[%emt 0:00:20]} 105. Ke5 {[%emt 0:00:05]} Ra1 {[%emt 0:00:19]} 106. Rd3 {[%emt 0:00:09]} Ra5+ {[%emt 0:01:12]} 107. Rd5 {[%emt 0:00:05]} Ra3 {[%emt 0:00:12]} 108. Rd7+ {[%emt 0:00:23]} Kg6 {[%emt 0:00:27]} 109. f5+ {[%emt 0:00:43]} Kh6 {[%emt 0:00:06]} 110. h4 {[%emt 0:00:43]} Rh3 {[%emt 0:00:19]} 111. Rd8 {[%emt 0:01:35]} Kg7 {[%emt 0:00:17]} 112. Rd7+ {[%emt 0:00:05]} Kg8 {[%emt 0:01:19]} 113. Ke6 {[%emt 0:00:33]} Rxh4 {[%emt 0:00:38]} 114. Rd8+ {[%emt 0:00:05]} Kh7 {[%emt 0:00:12]} 115. f6 {[%emt 0:00:05]} Re4+ {[%emt 0:00:25]} 116. Kf5 {[%emt 0:00:21]} Re1 {[%emt 0:00:22]} 117. f7 {[%emt 0:00:12]} Rf1+ {[%emt 0:00:30]} 118. Ke4 1-0

[Event "ESP-chT 1st Division 2020"]
[Site "Padron"]
[Date "2020.10.09"]
[Round "7.23"]
[White "Aguilera Lopez, Alejandro"]
[Black "Travadon, Loic"]
[Result "0-1"]
[ECO "A40"]
[WhiteElo "2241"]
[BlackElo "2424"]
[Annotator "ChessBase"]
[PlyCount "110"]
[EventDate "2020.10.01"]
[EventType "team-tourn"]
[EventCountry "ESP"]
[SourceTitle "playchess.com"]
[Source "ChessBase"]
[SourceQuality "1"]
[TimeControl "5400+30"]

1. d4 {[%emt 0:00:00]} g6 {[%emt 0:00:00]} 2. Nf3 Bg7 {[%emt 0:00:00]} 3. Bf4 {[%emt 0:00:00]} d6 {[%emt 0:00:00]} 4. e3 {[%emt 0:00:05]} Nd7 {[%emt 0:00:12]} 5. h3 {[%emt 0:00:18]} e5 {[%emt 0:01:41]} 6. dxe5 {[%emt 0:00:12]} dxe5 {[%emt 0:00:06]} 7. Bg5 {[%emt 0:01:45]} Ne7 {[%emt 0:00:19]} 8. Nc3 {[%emt 0:00:33]} f6 {[%emt 0:01:18]} 9. Bh4 {[%emt 0:01:14]} Nf5 {[%emt 0:01:14]} 10. e4 {[%emt 0:10:11]} Nxh4 {[%emt 0:00:13]} 11. Nxh4 {[%emt 0:00:09]} O-O {[%emt 0:01:27]} 12. Bc4+ {[%emt 0:01:31]} Kh8 {[%emt 0:00:02]} 13. Qe2 {[%emt 0:02:54]} c6 {[%emt 0:00:29]} 14. Rd1 {[%emt 0:00:49]} Qe7 {[%emt 0:00:22]} 15. O-O {[%emt 0:04:53]} b5 {[%emt 0:00:19]} 16. Bb3 {[%emt 0:02:04]} Nc5 {[%emt 0:00:41]} 17. a4 {[%emt 0:11:34]} b4 {[%emt 0:01:34]} 18. Nb1 {[%emt 0:00:31]} f5 {[%emt 0:01:06]} 19. Nf3 {[%emt 0:04:06]} Nxe4 {[%emt 0:00:12]} 20. Rfe1 {[%emt 0:01:45]} a5 {[%emt 0:07:44]} 21. Nbd2 {[%emt 0:06:35]} Nxd2 {[%emt 0:00:13]} 22. Qxd2 {[%emt 0:00:29]} e4 {[%emt 0:00:17]} 23. Nd4 {[%emt 0:03:16]} Bd7 {[%emt 0:02:33]} 24. c3 {[%emt 0:04:09]} bxc3 {[%emt 0:00:38]} 25. bxc3 {[%emt 0:00:31]} Rab8 {[%emt 0:01:23]} 26. Bc4 {[%emt 0:11:46]} Rfd8 {[%emt 0:01:47]} 27. Qc2 {[%emt 0:04:41]} c5 {[%emt 0:01:24]} 28. Nb5 {[%emt 0:01:57]} Bc6 {[%emt 0:00:11]} 29. Bf1 {[%emt 0:02:55]} Be5 {[%emt 0:03:46]} 30. Rxd8+ {[%emt 0:01:23]} Rxd8 {[%emt 0:00:11]} 31. Rd1 {[%emt 0:00:04]} Rxd1 {[%emt 0:01:07]} 32. Qxd1 {[%emt 0:00:08]} f4 {[%emt 0:01:07]} 33. Qg4 {[%emt 0:04:20]} Kg7 {[%emt 0:00:26]} 34. Qc8 {[%emt 0:01:38]} Bb7 {[%emt 0:00:18]} 35. Qg4 {[%emt 0:00:29]} f3 {[%emt 0:00:52]} 36. h4 {[%emt 0:02:55]} h5 {[%emt 0:00:39]} 37. Qg5 {[%emt 0:01:25]} Qxg5 {[%emt 0:01:15]} 38. hxg5 {[%emt 0:00:09]} Bd5 {[%emt 0:00:45]} 39. c4 {[%emt 0:00:52]} Bc6 {[%emt 0:00:10]} 40. gxf3 {[%emt 0:00:06]} exf3 {[%emt 0:00:09]} 41. Bd3 {[%emt 0:00:11]} Bf4 {[%emt 0:01:12]} 42. Bc2 {[%emt 0:00:34]} Bxg5 {[%emt 0:00:30]} 43. Nd6 {[%emt 0:01:02]} Be7 {[%emt 0:00:42]} 44. Ne4 {[%emt 0:00:43]} g5 {[%emt 0:00:41]} 45. Kh2 {[%emt 0:01:18]} Bxe4 {[%emt 0:00:25]} 46. Bxe4 {[%emt 0:00:06]} g4 {[%emt 0:00:02]} 47. Kg3 {[%emt 0:01:17]} Kf6 {[%emt 0:00:10]} 48. Bc6 {[%emt 0:00:41]} Kg5 {[%emt 0:00:10]} 49. Kh2 {[%emt 0:00:08]} Bf6 {[%emt 0:00:07]} 50. Kg1 {[%emt 0:00:39]} Bd4 {[%emt 0:00:07]} 51. Kf1 {[%emt 0:00:31]} Kf4 {[%emt 0:00:06]} 52. Bd7 {[%emt 0:00:32]} h4 {[%emt 0:00:07]} 53. Kg1 {[%emt 0:00:10]} h3 {[%emt 0:00:07]} 54. Bc8 {[%emt 0:00:41]} Bxf2+ {[%emt 0:00:23]} 55. Kh1 {[%emt 0:00:46]} Bd4 {[%emt 0:00:19]} 0-1

[Event "ESP-chT 1st Division 2020"]
[Site "Padron"]
[Date "2020.10.09"]
[Round "7.24"]
[White "Ambartsumova, Karina"]
[Black "Rodrigo Yanguas, Maria"]
[Result "1/2-1/2"]
[ECO "A05"]
[WhiteElo "2371"]
[BlackElo "2077"]
[Annotator "ChessBase"]
[PlyCount "90"]
[EventDate "2020.10.01"]
[EventType "team-tourn"]
[EventCountry "ESP"]
[SourceTitle "playchess.com"]
[Source "ChessBase"]
[SourceQuality "1"]
[TimeControl "5400+30"]

1. Nf3 {[%emt 0:00:13]} Nf6 {[%emt 0:00:00]} 2. g3 {[%emt 0:00:43]} g6 {[%emt 0:00:00]} 3. d4 {[%emt 0:00:39]} Bg7 {[%emt 0:00:00]} 4. Bg2 {[%emt 0:00:58]} O-O {[%emt 0:00:11]} 5. O-O {[%emt 0:00:51]} d6 {[%emt 0:00:09]} 6. b3 {[%emt 0:00:37]} c5 {[%emt 0:01:54]} 7. c4 {[%emt 0:01:47]} Nc6 {[%emt 0:01:43]} 8. Bb2 {[%emt 0:01:41]} Bg4 {[%emt 0:04:55]} 9. d5 {[%emt 0:08:06]} Na5 {[%emt 0:02:21]} 10. Re1 {[%emt 0:09:39]} a6 {[%emt 0:02:32]} 11. e4 {[%emt 0:05:31]} b5 {[%emt 0:19:07]} 12. cxb5 {[%emt 0:10:20]} axb5 {[%emt 0:00:22]} 13. Qc2 {[%emt 0:02:18]} Bxf3 {[%emt 0:02:19]} 14. Bxf3 {[%emt 0:02:47]} Nd7 {[%emt 0:06:56]} 15. Bxg7 {[%emt 0:12:37]} Kxg7 {[%emt 0:00:02]} 16. Nc3 {[%emt 0:00:15]} b4 {[%emt 0:05:33]} 17. Nd1 {[%emt 0:00:10]} Nb7 {[%emt 0:09:00]} 18. Ne3 {[%emt 0:01:28]} Nb6 {[%emt 0:00:20]} 19. e5 {[%emt 0:07:48]} Ra5 {[%emt 0:07:10]} 20. Qb2 {[%emt 0:01:59]} Kg8 {[%emt 0:06:08]} 21. Ng4 {[%emt 0:02:52]} h5 {[%emt 0:00:19]} 22. exd6 {[%emt 0:01:28]} Qxd6 {[%emt 0:02:42]} 23. Ne5 {[%emt 0:00:22]} Qf6 {[%emt 0:00:17]} 24. Qe2 {[%emt 0:01:43]} Nd8 {[%emt 0:09:08]} 25. Rac1 {[%emt 0:00:50]} Qd6 {[%emt 0:01:52]} 26. Red1 {[%emt 0:07:36]} e6 {[%emt 0:04:28]} 27. dxe6 {[%emt 0:09:19]} Qxe6 {[%emt 0:00:02]} 28. Rd2 {[%emt 0:00:51]} Re8 {[%emt 0:01:49]} 29. Rcd1 {[%emt 0:00:43]} Qxe5 {[%emt 0:02:56]} 30. Qxe5 {[%emt 0:00:12]} Rxe5 {[%emt 0:00:01]} 31. Rxd8+ {[%emt 0:00:08]} Kg7 {[%emt 0:00:08]} 32. Rb8 {[%emt 0:04:29]} Re6 {[%emt 0:00:28]} 33. Rd2 {[%emt 0:00:19]} c4 {[%emt 0:01:53]} 34. bxc4 {[%emt 0:00:36]} Nxc4 {[%emt 0:00:03]} 35. Rc2 {[%emt 0:00:52]} Ne5 {[%emt 0:00:34]} 36. Bg2 {[%emt 0:02:42]} Nd3 {[%emt 0:04:29]} 37. Bf1 {[%emt 0:00:58]} Ne1 {[%emt 0:01:37]} 38. Rb2 {[%emt 0:00:10]} Nf3+ {[%emt 0:01:03]} 39. Kg2 {[%emt 0:00:13]} Ne1+ {[%emt 0:00:30]} 40. Kg1 {[%emt 0:00:14]} Re4 {[%emt 0:01:54]} 41. f4 {[%emt 0:02:36]} h4 {[%emt 0:00:51]} 42. Bg2 {[%emt 0:00:32]} Nxg2 {[%emt 0:00:42]} 43. Kxg2 {[%emt 0:00:04]} hxg3 {[%emt 0:00:30]} 44. hxg3 {[%emt 0:00:02]} Ra3 {[%emt 0:01:19]} 45. R8xb4 {[%emt 0:00:35]} Rxb4 {[%emt 0:00:30]} 1/2-1/2